Cogmind - Beta 14 @@@ ROGUE MODE // 2025.03.04 @ 18:00:18 Player: AlStar Result: Destroyed by Y-45 Defender with Beam Rifle Performance ------------- Evolutions (1) 500 Regions Visited (3) 600 Robots Destroyed (41) 205 Value Destroyed (852) 852 Prototype IDs (7) 140 Alien Tech Used (0) 0 Bonus (0) 0 TOTAL SCORE: 2297 Bonus ------- None Cogmind --------- Core Integrity 0/400 Matter 295/300 Energy 88/125 System Corruption 0% Temperature Cool (9) Movement Flying (242) Ox3 Location -9/Materials Parts ------- > --- POWER (1) -------- Light Ion Engine > --- PROPULSION (3) --- Improved VTOL Module Improved VTOL Module > --- UTILITY (3) ------ High-capacity Storage Unit Weight Redist. System Weight Redist. System > --- WEAPON (2) ------- Great Maul Great Maul > --- INVENTORY (20) --- Light Ion Engine Light Ion Engine Light Ion Engine Improved Flight Unit Improved VTOL Module Heat Sink Improved Heat Sink High-capacity Battery (250) Weight Redist. System Weight Redist. System ECM Suite Improved Light Armor Plating Improved Light Armor Plating Improved Light Armor Plating Field Recycling Unit (0) Plasma Cutter Great Maul Great Maul Peak State ------------ > --- POWER ------------ Ion Engine > --- PROPULSION ------- Improved VTOL Module Improved VTOL Module Improved VTOL Module > --- UTILITY ---------- High-capacity Storage Unit Weight Redist. System Improved Light Armor Plating > --- WEAPON ----------- Great Maul Great Maul > --- INVENTORY -------- Light Ion Engine Light Ion Engine Light Ion Engine Light Ion Engine Light Ion Engine Improved Flight Unit Improved VTOL Module Heat Sink Improved Heat Sink High-capacity Battery Weight Redist. System Weight Redist. System Weight Redist. System ECM Suite Improved Light Armor Plating Improved Light Armor Plating Improved Light Armor Plating Field Recycling Unit Great Maul Great Maul [Rating: 29] Favorites ----------- Power Ion Engine Engine Ion Engine Propulsion Compact Wheel Leg Aluminum Leg Wheel Compact Wheel Flight Unit Improved VTOL Module Utility High-capacity Storage Unit Device Improved Heat Sink Storage High-capacity Storage Unit Processor Targeting Computer Protection Core Shielding Weapon Shotgun Energy Gun Medium Laser Ballistic Gun Shotgun Impact Weapon Great Maul Special Melee Weapon Datajack Build | -11 -10 -10 -9 ------- Run | Yrd Mat Min Mat Slots Evolved 2 | . . . 2 Power . | . . . . Propulsion 1 | . . . 1 Utility 1 | . . . 1 Weapon . | . . . . Parts Attached 46 | 6 10 5 25 Power 8 | 1 1 1 5 Engine 8 | 1 1 1 5 Core . | . . . . Reactor . | . . . . Propulsion 10 | 2 1 2 5 Treads . | . . . . Leg 2 | . . . 2 Wheel 5 | 2 1 2 . Hover . | . . . . Flight 3 | . . . 3 Utility 14 | 1 4 . 9 Device 5 | . . . 5 Storage 4 | 1 3 . . Processor 1 | . . . 1 Hackware . | . . . . Protection 4 | . 1 . 3 Artifact . | . . . . Weapon 14 | 2 4 2 6 Energy Gun 6 | 1 2 1 2 Energy Cannon . | . . . . Ballistic Gun 5 | 1 1 1 2 Ballistic Cannon . | . . . . Launcher . | . . . . Special Weapon . | . . . . Impact Weapon 2 | . . . 2 Slashing Weapon . | . . . . Piercing Weapon . | . . . . Special Melee Weapon 1 | . 1 . . Unidentified Prototypes 1 | . . . 1 Parts Lost 20 | . 1 4 15 Power 3 | . . . 3 Propulsion 5 | . . 2 3 Utility 3 | . . . 3 Weapon 9 | . 1 2 6 Highest Loss Streak 11 | . 1 3 11 To Critical Strikes 1 | . . 1 . Average Slot Usage (%) 93 | . 97 99 87 Engine 12 | . 14 14 10 Leg 3 | . . . 6 Wheel 16 | . 28 27 3 Flight 5 | . . . 11 Device 4 | . . . 8 Storage 12 | . 14 14 11 Processor 1 | . . . 3 Protection 11 | . 11 14 9 Energy Gun 8 | . 13 14 2 Ballistic Gun 11 | . 14 14 9 Impact Weapon 4 | . . . 8 Peak Build Rating 29 | 6 10 10 29 Average Rating 12 | 4 8 9 17 On Entrance 6 | . 6 10 10 Naked Turns . | . . . . Heaviest Build 56 | 13 51 51 56 Greatest Support 32 | 32 32 32 26 Greatest Overweight (x) 16 | . 1 3 16 Average Overweight (x) 1 | . . 1 2 Largest Inventory Capacity 25 | 8 25 20 20 Average Capacity 18 | 7 15 20 20 Most Carried 20 | 3 20 20 20 Average Carried 15 | 1 12 19 15 Final Capacity 20 | 8 20 20 20 Final Carried 20 | 2 20 20 18 Class Distribution -------------------- 86% | Mutant 13% | Scavenger-Mutant Dominant Class ---------------- Mutant | -10/Materials Mutant | -10/Mines Mutant | -9/Materials Resources | -11 -10 -10 -9 ----------- Run | Yrd Mat Min Mat Matter Collected 894 | 211 236 107 340 Remotely . | . . . . Salvage Created 1064 | . 287 252 525 Parts 67 | . 16 14 37 Haulers Intercepted 1 | . 1 . . Recyclers Shooed 2 | . . 1 1 Parts Field Recycled . | . . . . Retrieved Matter . | . . . . Parts Self-Destructed . | . . . . Prevented . | . . . . Kills | -11 -10 -10 -9 ------- Run | Yrd Mat Min Mat Combat Hostiles Destroyed 35 | . 5 7 23 Melee 4 | . . . 4 Guns 26 | . 5 7 14 AOE 1 | . . . 1 Classes Destroyed 6 | . 3 2 1 Builder 2 | . . . 2 Hauler 1 | . 1 . . Watcher 3 | . 1 . 2 Swarmer 20 | . . 3 17 Grunt 12 | . 5 2 5 Sentry 3 | . . 2 1 Best Kill Streak 8 | . 3 3 8 Combat Bots Only 7 | . 2 3 7 Max Kills in Single Turn 1 | . 1 1 1 Gunslinging . | . . . . Exploded 1 | . . . 1 Melee 1 | . . . 1 Uniques/NPCs Destroyed . | . . . . Combat | -11 -10 -10 -9 -------- Run | Yrd Mat Min Mat Hostile Shots Fired 300 | . 28 34 238 Missed 56 | . 7 4 45 Damage Taken 2506 | . 297 376 1833 Core 556 | . 23 128 405 Absorbed by Shields . | . . . . Redirected to Shielding 51 | . 5 24 22 Core Remaining (%) 69 | 100 . 39 . Volleys Fired 91 | . 28 18 45 Largest 2 | . 2 2 2 Hottest 88 | . 73 73 88 Shots Fired 170 | . 53 36 81 Gun 170 | . 53 36 81 Cannon . | . . . . Launcher . | . . . . Special . | . . . . Kinetic 101 | . 28 18 55 Thermal 53 | . 25 12 16 Explosive . | . . . . Electromagnetic 16 | . . 6 10 Robot Hit Streak 8 | . 8 8 6 Robot Miss Streak 6 | . 5 4 6 Penetration Max . | . . . . Secondary Targets 10 | . . 3 7 Max Gunslinging Chain 1 | . . 1 1 Shots Hit Robots 122 | . 38 24 60 Core Hits 56 | . 17 12 27 Critical Kills 1 | . . . 1 Critical Parts Destroyed 3 | . . . 3 Critical Strikes 4 | . . . 4 Smash 4 | . . . 4 Melee Attacks 26 | . 2 . 24 Impact 24 | . . . 24 Slashing . | . . . . Piercing . | . . . . Sneak Attacks . | . . . . Combat Hostiles . | . . . . Follow-up Attacks 3 | . . . 3 Damage Inflicted 2233 | . 472 340 1421 Guns 1542 | . 472 338 732 Cannons . | . . . . Explosions 75 | . . . 75 Melee 614 | . . . 614 Ramming 2 | . . 2 . Kinetic 1072 | . 286 230 556 Thermal 453 | . 186 75 192 Explosive . | . . . . Electromagnetic 92 | . . 33 59 Impact 614 | . . . 614 Slashing . | . . . . Piercing . | . . . . Highest Corruption . | . . . . Average Corruption . | . . . . Corruption Purged . | . . . . Corruption Blocked . | . . . . Overload Shots . | . . . . Overflow Damage 246 | . . . 246 Projectiles . | . . . . Explosions 8 | . . . 8 Melee 238 | . . . 238 Knockbacks 2 | . . . 2 Impact 2 | . . . 2 Kinetic . | . . . . Secondary . | . . . . Self-Inflicted Damage 33 | . . 1 32 Shots 1 | . . . 1 Rammed 1 | . . 1 . Targets Rammed 1 | . . 1 . Kicked . | . . . . Crushed . | . . . . Highest Temperature 246 | . 93 201 246 Average Temperature 54 | . 32 61 71 Received Heat Transfer 771 | . 207 138 426 Siege Activations . | . . . . Robots Corrupted 5 | . . . 5 Combat Hostiles 4 | . . . 4 Parts Fried 6 | . . . 6 Impact Corruptions 13 | . . . 13 Robots Melted . | . . . . Combat Hostiles . | . . . . Parts Melted . | . . . . Heat Transferred 1090 | . 472 222 396 Parts Sabotaged . | . . . . Parts Stolen . | . . . . Parts Stripped . | . . . . Power Chain Reactions 1 | . . . 1 Alert | -11 -10 -10 -9 ------- Run | Yrd Mat Min Mat Peak Influence 271 | . 175 111 271 Initial 15 | . . 1 15 Average 61 | . 60 36 82 Maximum Alert Level 1 | . . . 1 Low Security (%) 94 | 100 100 100 88 Level 1 5 | . . . 11 Level 2 . | . . . . Level 3 . | . . . . Level 4 . | . . . . Level 5 . | . . . . High Security . | . . . . Max Security . | . . . . Squads Dispatched 3 | . 1 . 2 Investigation . | . . . . Extermination . | . . . . Reinforcement 3 | . 1 . 2 Assault . | . . . . Garrison . | . . . . Intercept . | . . . . Searches Triggered . | . . . . Construction Impeded . | . . . . Haulers Reinforced . | . . . . Active Scanning Responses . | . . . . Cargo Convoy Interrupts . | . . . . Stealth | -11 -10 -10 -9 --------- Run | Yrd Mat Min Mat Distress Signals 4 | . 2 . 2 Communications Jammed . | . . . . Distress Signals . | . . . . Times Spotted 48 | . 9 7 32 Peak Tracking Total 7 | . 3 3 7 Tactical Retreats 2 | . . . 2 Traps | -11 -10 -10 -9 ------- Run | Yrd Mat Min Mat Traps Triggered . | . . . . Indirectly . | . . . . Trap Hack Attempts . | . . . . Triggered . | . . . . Disarmed . | . . . . Reprogrammed . | . . . . Reused . | . . . . Traps Extracted . | . . . . Installed . | . . . . Triggered . | . . . . Machines | -11 -10 -10 -9 ---------- Run | Yrd Mat Min Mat Machines Disabled 2 | . . 1 1 Max in Single Turn 1 | . . 1 1 Machines Repaired . | . . . . Machines Dismantled . | . . . . Machines Sabotaged . | . . . . Overloaded Fab Kills . | . . . . Hacking | -11 -10 -10 -9 --------- Run | Yrd Mat Min Mat Machines Accessed 12 | . 6 . 6 Terminals 9 | . 4 . 5 Fabricators . | . . . . Repair Stations . | . . . . Recycling Units 3 | . 2 . 1 Scanalyzers . | . . . . Garrison Access . | . . . . Total Hacks 35 | . 20 . 15 Successful 17 | . 10 . 7 Failed 18 | . 10 . 8 Catastrophic 1 | . . . 1 Database Lockouts . | . . . . Manual 10 | . 7 . 3 Terminals 27 | . 13 . 14 Fabricators . | . . . . Repair Stations . | . . . . Recycling Units 8 | . 7 . 1 Scanalyzers . | . . . . Garrison Access . | . . . . Terminal Hacks 10 | . 4 . 6 Prototype ID Bank 4 | . 1 . 3 Alert Level 1 | . . . 1 Unreport Threat 2 | . . . 2 Registered Components 1 | . 1 . . Zone Layout 2 | . 2 . . Fabricator Hacks . | . . . . Repair Station Hacks . | . . . . Recycling Unit Hacks 4 | . 4 . . Report Inventory 2 | . 2 . . Retrieve Components 2 | . 2 . . Scanalyzer . | . . . . Garrison Access Hacks . | . . . . Unauthorized Hacks 3 | . 2 . 1 Terminals 3 | . 2 . 1 Botnet 3 | . 2 . 1 Fabricators . | . . . . Repair Stations . | . . . . Recycling Units . | . . . . Scanalyzers . | . . . . Garrison Access . | . . . . Data Cores Recovered . | . . . . Used . | . . . . Hacking Detections 11 | . 6 . 5 Full Trace Events . | . . . . Feedback Events . | . . . . Feedback Blocked . | . . . . Robot Schematics Acquired . | . . . . Robots Built . | . . . . Authchips . | . . . . Time . | . . . . Total Robot Build Rating . | . . . . Part Schematics Acquired . | . . . . Parts Built . | . . . . Authchips . | . . . . Time . | . . . . Total Part Build Rating . | . . . . Parts Repaired . | . . . . Time . | . . . . Parts Recycled . | . . . . Recycled Matter . | . . . . Retrieved Matter . | . . . . Retrieved Components 10 | . 10 . . Parts Scanalyzed . | . . . . Part Schematics Acquired . | . . . . Parts Damaged . | . . . . Bothacking | -11 -10 -10 -9 ------------ Run | Yrd Mat Min Mat Used RIF Installer . | . . . . Robots Hacked 1 | . 1 . . Non-combat . | . . . . Combat 1 | . 1 . . Robot Hacks Applied 1 | . 1 . . parse_system 1 | . 1 . . Relay Couplers Released . | . . . . Fabnet Peak Effective % . | . . . . Robots Rewired . | . . . . Allies Hacked . | . . . . Hacks Repelled . | . . . . Allies | -11 -10 -10 -9 -------- Run | Yrd Mat Min Mat Total Allies . | . . . . Largest Group . | . . . . Highest-Rated Group . | . . . . Highest-Rated Ally . | . . . . Total Orders . | . . . . Ally Attacks . | . . . . Total Damage . | . . . . Kills . | . . . . Allies Corrupted . | . . . . Allies Melted . | . . . . Intel | -11 -10 -10 -9 ------- Run | Yrd Mat Min Mat Robot Analysis Total . | . . . . Derelict Logs Recovered . | . . . . Drone Launches . | . . . . Drone Recoveries . | . . . . Exploration | -11 -10 -10 -9 ------------- Run | Yrd Mat Min Mat Turns Passed 1799 | 65 449 492 793 Spaces Moved 1003 | 47 294 370 292 Core 9 | 7 . . 2 Treads . | . . . . Legs 85 | . . . 85 Wheels 787 | 40 294 370 83 Hover . | . . . . Flight 122 | . . . 122 Fastest Speed 50 | 50 100 105 120 Average Speed 134 | 92 109 114 191 Slowest Speed 850 | 100 115 145 850 Overloaded Moves . | . . . . Propulsion Burnouts . | . . . . Robots Hopped . | . . . . Cave-ins Triggered . | . . . . Exploration Rate (%) 43 | 3 57 82 30 Regions Visited 3 Branch Regions 1 Pre-discovered Areas . | . . . . Known Exits Taken . | . . . . Unknown Exits Taken 3 | 1 1 1 . Scrap Searched 1 | . . 1 . Spaces Dug . | . . . . Terrain Destroyed 3 | . . . 3 Melee . | . . . . Projectile . | . . . . AOE 3 | . . . 3 Terrain Rammed . | . . . . Walls Destroyed . | . . . . Machines Disabled . | . . . . Actions | -11 -10 -10 -9 --------- Run | Yrd Mat Min Mat Total 1249 | 68 370 405 406 Wait 14 | 8 5 1 . Move 1000 | 46 293 369 292 Hop . | . . . . Pick Up 60 | 8 25 7 20 Fast Attach . | . . . . Attach 30 | 6 2 4 18 Detach . | . . . . Swap 16 | . 8 1 7 Drop 16 | . 7 4 5 Fire 91 | . 28 18 45 Melee 21 | . 2 . 19 Ram 1 | . . 1 . Kick . | . . . . Crush . | . . . . Escape Stasis . | . . . . Rewire . | . . . . Trap . | . . . . Miscellaneous . | . . . . Route ------- -11/Scrapyard -10/Materials (discovered 3 exits: *Mat x2 / [*Min]) -10/Mines -9/Materials (discovered 1 exit: [*Mat]) History --------- Turn | Location | Event 16 | -11/Scrapyard | Discovered new exit (range 16) 66 | -11/Scrapyard | Entered Materials 317 | -10/Materials | Discovered new exit (range 16) 318 | -10/Materials | Build established: Mutant 351 | -10/Materials | Discovered new exit (range 15) 494 | -10/Materials | Discovered new exit (range 7) 515 | -10/Materials | Entered Mines 948 | -10/Mines | Core integrity fell below 50% 975 | -10/Mines | Lost 3 parts (2n1w) 999 | -10/Mines | Discovered new exit (range 8) 1007 | -10/Mines | Entered Materials 1007 | -9/Materials | Evolved 2 slots: Propulsion x1, Utility x1 1159 | -9/Materials | Destroyed 7 combat bots 1208 | -9/Materials | Core integrity fell below 50% 1254 | -9/Materials | Lost 11 parts (3p2n2u4w) 1257 | -9/Materials | Destroyed 7 combat bots 1581 | -9/Materials | Core integrity fell below 20% 1768 | -9/Materials | Discovered new exit (range 16) 1800 | -9/Materials | Destroyed by Y-45 Defender with Beam Rifle Last Messages --------------- 01778_ S-10 Pest system terminally corrupted. 01778_ Lgt. Assault Rifle fried. 01779_ K-01 Serf collects debris. 01782_ Imp. Light Armor Plating destroyed. 01783_ Destroyed Flight Unit. 01783_ S-10 Pest system corrupted by crushing effect. 01784_ S-10 Pest system terminally corrupted. 01785_ K-01 Serf collects debris. 01790_ Destroyed Flight Unit. 01790_ S-10 Pest system corrupted by crushing effect. 01790_ Lgt. Ion Engine fried. 01790_ S-10 Pest destroyed. 01791_ K-01 Serf collects debris. 01793_ K-01 Serf cleans the Terminal. 01794_ K-01 Serf collects debris. 01794_ Imp. VTOL Module destroyed. 01795_ Great Maul follow-up attack on Y-45 Defender. 01795_ Destroyed Heat Sink. 01795_ Y-45 Defender system corrupted by crushing effect. 01797_ K-01 Serf cleans the Terminal. Map ----- +----------------------------------------------------+ | ???????????# #??????## | | ???????????# #??????#" % % | | ???????#+#?# #??????#T #### ## ##### | | ???????# #?# #??????#" """ T#?# ## #???? | | ######## #?# #??????## """ #### ## #???? | | # #?# #???????# """ """# ## #???? | | # ### ######### Y"######### #???? | | # """#???????# #???? | | + ! ####???????# #???? | | # #??????????? ????? | | ### ########### ########??????????? ????? | | #?# #?????????# #?????????????????? ????? | | #?# #?????????# #?????????????????? ????? | | #####+##?# #?????????# #?????????????????? ????? | | #### ### #?????????# #?????????????????? ????? | | # T #?????????# #???????????????????????? | | # ## #####?????????# #???????????????????????? | | #+###+##???????##????# #???????????????????????? | | # = #??????##!!???#% #???????????????????????? | | # #??????#! ??# #???????????????????????? | | # """ #??????# ?# #???????????????????????? | | #! """ #???#### # ##############+?????????? | | #* """ #? ^ u ????????? | | #* #?< ????????? | | ########? Y ????????? | | ?????????########### ##@#############??????????? | | ???????????????????# # %k#?????????????????????? | | ???????????????????# # "k#?????????????????????? | | ???????????????????# # T #?????????????????????? | | ???????????????????# # " #?????????????????????? | | ???????????????????# # #?????????????????????? | | ???????????????????# #[ !#?????????????????????? | | ???????????????????# " # #?????????????????????? | | ???????????????????#"% #####?????????????????????? | | ???????????????????# " ??????????????????????????? | | ???????????????????# ??????????????????????????? | | ????????????????????? ???????????????????????????? | | ?????????????????????????????????????????????????? | | ?????????????????????????????????????????????????? | | ?????????????????????????????????????????????????? | | ?????????????????????????????????????????????????? | | ?????????????????????????????????????????????????? | | ?????????????????????????????????????????????????? | | ?????????????????????????????????????????????????? | | ?????????????????????????????????????????????????? | | ?????????????????????????????????????????????????? | | ?????????????????????????????????????????????????? | | ?????????????????????????????????????????????????? | | ?????????????????????????????????????????????????? | | ?????????????????????????????????????????????????? | +----------------------------------------------------+ Best States ------------- Heat Dissipation 42 Energy Generation 10 Energy Capacity 250 Matter Stores 300 Matter Capacity 300 Sight Range 16 Terrain Scan Density 10 Additional Mass Support 6 Armor Coverage 150 Core Shielding 20 Evasion (%) 40 Targeting Accuracy 5 Item Schematics ----------------- None Robot Schematics ------------------ None Fabricated ------------ Nothing Alien Tech Used ----------------- None Achievements -------------- None Challenges ------------ None Game ------ Seed AutogunStormBlaster Manual? 0 Play Time 00:28:10 Cumulative 99.5 hours Start 2025.03.04 @ 17:32:40 End 2025.03.04 @ 18:00:18 Sessions 1 Manual Loads 0 Difficulty Rogue Special Mode None Game No. 69 Rogue 69 Adventurer 0 Explorer 0 Win Type - Total 0 Types 0/0/0/0/0/0/0/0/0 Lore% 28 Gallery% 46 Achievement% 38 Wizard Run 0 Options --------- Layout 1 ASCII 0 Keyboard 0 Movement Mouse Keybinds 0 Fullscreen 0 Font 28/SmallcapsGlow Map View 59x39 Zoom Use 0% Tactical HUD 1 Map Filters NONE Filters NONE Steam 1 RUN: c19df4a8-bd6c-48e8-99a7-47700b92b9a7